lending/lending_fUSD_20250316
["ID","MTS","AMOUNT","RATE_DAILY","PERIOD"]
[356226375,1742111471757,-12000.0,0.00041792,8]
[356226376,1742111471767,-1381.82200403,0.00041808,2]
[356226377,1742111471776,-157.37827045,0.00041817,28]
[356226378,1742111471786,-150.0,0.00041825,30]
[356226379,1742111471795,-150.0,0.00041857,30]
[356226380,1742111471806,-824.69,0.00041873,2]
[356226381,1742111471816,-150.0,0.00041876,30]
[356226382,1742111471825,-160.784698,0.00041888,120]
[356226383,1742111471835,-150.0,0.00041892,30]
[356226384,1742111471845,-1000.0,0.000419,120]
[356226385,1742111471855,-906.0,0.00041917,20]
[356226386,1742111471864,-1313.515609,0.00041917,31]
[356226387,1742111471873,-156.801182,0.00041917,31]
[356226388,1742111471882,-1612.967399,0.00041917,31]
[356226389,1742111471891,-500.81429761,0.00041917,31]
[356226390,1742111471900,-500.0,0.00041917,31]
[356226391,1742111471909,-500.0,0.00041917,31]
[356226392,1742111471918,-500.0,0.00041917,31]
[356226393,1742111471928,-151.0,0.00041917,14]
[356226394,1742111471937,-500.0,0.00041917,31]
[356226395,1742111471946,-556.85,0.00041917,31]
[356226396,1742111471955,-151.0,0.00041917,14]
[356226397,1742111471964,-902.79,0.00041917,31]
[356226398,1742111471973,-500.0,0.00041917,31]
[356226399,1742111471982,-500.0,0.00041917,31]
[356226400,1742111471991,-500.0,0.00041917,31]
[356226401,1742111472000,-151.0,0.00041917,14]
[356226402,1742111472009,-500.0,0.00041917,31]
[356226403,1742111472019,-500.0,0.00041917,31]
[356226404,1742111472028,-500.0,0.00041917,31]
[356226405,1742111472037,-582.12066468,0.00041917,31]
[356226406,1742111472046,-638.03,0.00041917,31]
[356226407,1742111472055,-500.0,0.00041917,31]
[356226408,1742111472064,-591.42,0.00041917,31]
[356226409,1742111472073,-935.16,0.00041917,31]
[356226410,1742111472083,-500.0,0.00041917,31]
[356226411,1742111472092,-500.0,0.00041917,31]
[356226412,1742111472101,-500.0,0.00041917,31]
[356226413,1742111472111,-511.96,0.00041917,31]
[356226414,1742111472120,-500.0,0.00041917,31]
[356226415,1742111472129,-500.0,0.00041917,31]
[356226416,1742111472139,-546.12335872,0.00041917,31]
[356226417,1742111472149,-931.92,0.00041917,31]
[356226418,1742111472160,-830.53,0.00041917,31]
[356226419,1742111472170,-439.93390713,0.00041917,31]
[356226420,1742111472180,-500.0,0.00041917,31]
[356226421,1742111472189,-579.15,0.00041917,31]
[356226422,1742111472198,-500.0,0.00041917,31]
[356226423,1742111472207,-500.0,0.00041917,120]
[356226424,1742111472216,-918.96,0.00041917,31]
[356226425,1742111472225,-500.0,0.00041917,31]
[356226426,1742111472235,-500.0,0.00041917,31]
[356226427,1742111472244,-438.066489,0.00041917,14]
[356226428,1742111472253,-500.0,0.00041917,31]
[356226429,1742111472262,-438.066489,0.00041917,14]
[356226430,1742111472272,-500.0,0.00041917,31]
[356226431,1742111472282,-690.98,0.00041917,31]
[356226432,1742111472292,-635.32,0.00041917,31]
[356226433,1742111472301,-613.17276534,0.00041917,31]
[356226434,1742111472311,-1286.63,0.00041917,31]
[356226435,1742111472320,-500.0,0.00041917,31]
[356226436,1742111472330,-500.0,0.00041917,31]
[356226437,1742111472339,-660.09,0.00041917,31]
[356226438,1742111472348,-500.0,0.00041917,31]
[356226439,1742111472358,-500.0,0.00041917,31]
[356226440,1742111472367,-500.0,0.00041917,31]
[356226441,1742111472377,-721.38,0.00041917,31]
[356226442,1742111472386,-500.0,0.00041917,31]
[356226443,1742111472396,-500.0,0.00041917,31]
[356226444,1742111472406,-566.16,0.00041917,31]
[356226445,1742111472415,-500.0,0.00041917,30]
[356226446,1742111472425,-452.10856984,0.00041917,31]
[356226447,1742111472435,-500.0,0.00041917,31]
[356226448,1742111472444,-500.0,0.00041917,31]
[356226449,1742111472454,-503.55648251,0.00041917,31]
[356226450,1742111472463,-500.0,0.00041917,31]
[356226451,1742111472473,-151.0,0.00041917,14]
[356226452,1742111472482,-500.0,0.00041917,31]
[356226453,1742111472492,-500.0,0.00041917,31]
[356226454,1742111472501,-500.0,0.00041917,31]
[356226455,1742111472511,-500.0,0.00041917,31]
[356226456,1742111472520,-1005.63,0.00041917,31]
[356226457,1742111472530,-500.0,0.00041917,31]
[356226458,1742111472539,-500.0,0.00041917,31]
[356226459,1742111472548,-500.0,0.00041917,31]
[356226460,1742111472558,-721.97,0.00041917,31]
[356226461,1742111472568,-640.80335994,0.00041917,31]
[356226462,1742111472578,-325.60028978,0.00041917,31]
[356226463,1742111472588,-500.0,0.00041917,31]
[356226464,1742111472598,-500.0,0.00041917,31]
[356226465,1742111472608,-536.37,0.00041917,31]
[356226466,1742111472617,-500.0,0.00041917,31]
[356226467,1742111472627,-500.0,0.00041917,31]
[356226468,1742111472637,-500.0,0.00041917,31]
[356226469,1742111472646,-500.0,0.00041917,31]
[356226470,1742111472655,-1375.93,0.00041917,31]
[356226471,1742111472665,-500.0,0.00041917,31]
[356226472,1742111472674,-1226.69,0.00041917,31]
[356226473,1742111472684,-500.0,0.00041917,31]
[356226474,1742111472693,-500.0,0.00041917,2]
[356226475,1742111472703,-2466.31,0.00041917,31]
[356226476,1742111472712,-500.0,0.00041917,31]
[356226477,1742111472722,-500.0,0.00041917,31]
[356226478,1742111472731,-500.0,0.00041917,31]
[356226479,1742111472740,-151.0,0.00041917,14]
[356226480,1742111472749,-455.85662008,0.00041917,31]
[356226481,1742111472759,-500.0,0.00041917,31]
[356226482,1742111472771,-500.0,0.00041917,31]
[356226483,1742111472780,-500.0,0.00041917,31]
[356226484,1742111472789,-500.0,0.00041917,31]
[356226485,1742111472798,-500.0,0.00041917,31]
[356226486,1742111472807,-500.0,0.00041917,31]
[356226487,1742111472817,-500.0,0.00041917,31]
[356226488,1742111472826,-500.0,0.00041917,31]
[356226489,1742111472837,-500.0,0.00041917,31]
[356226490,1742111472847,-500.0,0.00041917,31]
[356226491,1742111472856,-500.0,0.00041917,31]
[356226492,1742111472866,-500.0,0.00041917,31]
[356226493,1742111472874,-500.0,0.00041917,31]
[356226494,1742111472884,-500.0,0.00041917,31]
[356226495,1742111472893,-500.0,0.00041917,31]
[356226496,1742111472903,-1538.32,0.00041917,31]
[356226497,1742111472912,-500.0,0.00041917,31]
[356226498,1742111472921,-500.0,0.00041917,31]
[356226499,1742111472931,-500.0,0.00041917,31]
[356226500,1742111472940,-591.92,0.00041917,31]
[356226501,1742111472949,-500.0,0.00041917,31]
[356226502,1742111472958,-500.0,0.00041917,31]
[356226503,1742111472967,-500.0,0.00041917,31]
[356226504,1742111472976,-1307.53,0.00041917,31]
[356226505,1742111472985,-500.0,0.00041917,31]
[356226506,1742111472994,-500.0,0.00041917,31]
[356226507,1742111473004,-500.0,0.00041917,30]
[356226508,1742111473014,-500.0,0.00041917,31]
[356226509,1742111473024,-500.0,0.00041917,31]
[356226510,1742111473033,-718.08,0.00041917,31]
[356226511,1742111473043,-1195.59,0.00041917,31]
[356226512,1742111473051,-759.46,0.00041917,31]
[356226513,1742111473061,-816.43,0.00041917,31]
[356226514,1742111473071,-500.0,0.00041917,31]
[356226515,1742111473080,-500.0,0.00041917,31]
[356226516,1742111473089,-500.0,0.00041917,31]
[356226517,1742111473098,-669.82,0.00041917,31]
[356226518,1742111473107,-562.20323766,0.00041917,31]
[356226519,1742111473117,-571.34141595,0.00041917,31]
[356226520,1742111473126,-500.0,0.00041917,31]
[356226521,1742111473135,-500.0,0.00041917,31]
[356226522,1742111473145,-532.22,0.00041917,31]
[356226523,1742111473154,-583.52,0.00041917,31]
[356226524,1742111473163,-500.0,0.00041917,31]
[356226525,1742111473173,-500.0,0.00041917,31]
[356226526,1742111473183,-500.0,0.00041917,31]
[356226527,1742111473194,-500.0,0.00041917,31]
[356226528,1742111473204,-500.0,0.00041917,31]
[356226529,1742111473214,-500.0,0.00041917,31]
[356226530,1742111473224,-281.1764606,0.00041917,31]
[356226531,1742111473235,-500.0,0.00041917,31]
[356226532,1742111473244,-500.0,0.00041917,31]
[356226533,1742111473254,-275.87254083,0.00041917,31]
[356226534,1742111473263,-368.12422224,0.00041917,31]
[356226535,1742111473272,-500.0,0.00041917,31]
[356226536,1742111473282,-1093.89,0.00041917,31]
[356226537,1742111473291,-500.0,0.00041917,31]
[356226538,1742111473301,-500.0,0.00041917,31]
[356226539,1742111473310,-500.0,0.00041917,31]
[356226540,1742111473319,-500.0,0.00041917,31]
[356226541,1742111473328,-500.0,0.00041917,31]
[356226542,1742111473338,-350.0,0.00041917,2]
[356226543,1742111473347,-664.63,0.00041917,31]
[356226544,1742111473357,-500.0,0.00041917,31]
[356226545,1742111473366,-500.0,0.00041917,31]
[356226546,1742111473376,-500.0,0.00041917,31]
[356226547,1742111473387,-521.69,0.00041917,31]
[356226548,1742111473396,-500.0,0.00041917,31]
[356226549,1742111473406,-500.0,0.00041917,31]
[356226550,1742111473415,-500.0,0.00041917,31]
[356226551,1742111473425,-500.0,0.00041917,31]
[356226552,1742111473437,-921.17,0.00041917,31]
[356226553,1742111473448,-500.0,0.00041917,31]
[356226554,1742111473457,-620.56,0.00041917,31]
[356226555,1742111473467,-987.05,0.00041917,31]
[356226556,1742111473476,-500.0,0.00041917,31]
[356226557,1742111473485,-543.10732443,0.00041917,31]
[356226558,1742111473495,-500.0,0.00041917,31]
[356226559,1742111473504,-781.76,0.00041917,31]
[356226560,1742111473513,-500.0,0.00041917,31]
[356226561,1742111473522,-500.0,0.00041917,31]
[356226562,1742111473532,-500.0,0.00041917,31]
[356226563,1742111473541,-500.0,0.00041917,31]
[356226564,1742111473551,-845.81,0.00041917,31]
[356226565,1742111473560,-521.87527529,0.00041917,31]
[356226566,1742111473569,-500.0,0.00041917,31]
[356226567,1742111473579,-500.0,0.00041917,31]
[356226568,1742111473588,-500.0,0.00041917,31]
[356226569,1742111473597,-1638.59,0.00041917,31]
[356226570,1742111473606,-693.95,0.00041917,31]
[356226571,1742111473615,-449.29891944,0.00041917,31]
[356226572,1742111473625,-500.0,0.00041917,31]
[356226573,1742111473634,-500.0,0.00041917,31]
[356226574,1742111473644,-500.0,0.00041917,31]
[356226575,1742111473653,-500.0,0.00041917,31]
[356226576,1742111473663,-500.0,0.00041917,31]
[356226577,1742111473673,-615.98,0.00041917,31]
[356226578,1742111473682,-500.0,0.00041917,31]
[356226579,1742111473691,-500.0,0.00041917,31]
[356226580,1742111473702,-1103.98,0.00041917,31]
[356226581,1742111473711,-500.0,0.00041917,31]
[356226582,1742111473721,-560.03,0.00041917,31]
[356226583,1742111473731,-524.38,0.00041917,31]
[356226584,1742111473741,-240.21731308,0.00041917,31]
[356226585,1742111473751,-779.68,0.00041917,31]
[356226586,1742111473764,-948.44,0.00041917,31]
[356226587,1742111473774,-505.57,0.00041917,31]
[356226588,1742111473784,-804.83,0.00041917,31]
[356226589,1742111473793,-281.06099971,0.00041917,31]
[356226590,1742111473804,-1070.37,0.00041917,10]
[356226591,1742111473814,-757.94,0.00041917,31]
[356226592,1742111473823,-500.0,0.00041917,31]
[356226593,1742111473833,-500.0,0.00041917,31]
[356226594,1742111473846,-500.0,0.00041917,31]
[356226595,1742111473857,-1211.56,0.00041917,31]
[356226596,1742111473866,-500.0,0.00041917,31]
[356226597,1742111473876,-965.9,0.00041917,31]
[356226598,1742111473885,-500.0,0.00041917,31]
[356226599,1742111473895,-500.0,0.00041917,31]
[356226600,1742111473904,-500.0,0.00041917,31]
[356226601,1742111473914,-151.0,0.00041917,14]
[356226602,1742111473923,-500.0,0.00041917,31]
[356226603,1742111473933,-500.0,0.00041917,31]
[356226604,1742111473943,-500.0,0.00041917,31]
[356226605,1742111473952,-300.0,0.00041917,31]
[356226606,1742111473962,-500.0,0.00041917,31]
[356226607,1742111473972,-960.56,0.00041917,31]
[356226608,1742111473982,-500.0,0.00041917,31]
[356226609,1742111473992,-1545.52,0.00041917,7]
[356226610,1742111474002,-151.0,0.00041917,14]
[356226611,1742111474011,-500.0,0.00041917,31]
[356226612,1742111474021,-500.0,0.00041917,31]
[356226613,1742111474032,-512.78,0.00041917,31]
[356226614,1742111474043,-564.0,0.00041917,31]
[356226615,1742111474053,-500.0,0.00041917,31]
[356226616,1742111474063,-500.0,0.00041917,31]
[356226617,1742111474073,-1248.52,0.00041917,31]
[356226618,1742111474083,-500.0,0.00041917,31]
[356226619,1742111474093,-500.0,0.00041917,31]
[356226620,1742111474104,-500.0,0.00041917,31]
[356226621,1742111474113,-500.0,0.00041917,31]
[356226622,1742111474123,-953.92,0.00041917,31]
[356226623,1742111474132,-500.0,0.00041917,31]
[356226624,1742111474141,-500.0,0.00041917,31]
[356226625,1742111474151,-500.0,0.00041917,31]
[356226626,1742111474160,-500.0,0.00041917,31]
[356226627,1742111474170,-500.0,0.00041917,31]
[356226628,1742111474180,-500.0,0.00041917,31]
[356226629,1742111474190,-500.0,0.00041917,31]
[356226630,1742111474200,-625.34055136,0.00041917,31]
[356226631,1742111474209,-151.0,0.00041917,14]
[356226632,1742111474218,-1217.97,0.00041917,31]
[356226633,1742111474228,-500.0,0.00041917,31]
[356226634,1742111474238,-500.0,0.00041917,14]
[356226635,1742111474248,-500.0,0.00041917,31]
[356226636,1742111474257,-406.18998848,0.00041917,31]
[356226637,1742111474266,-500.0,0.00041917,31]
[356226638,1742111474276,-1765.6,0.00041917,31]
[356226639,1742111474285,-607.57,0.00041917,31]
[356226640,1742111474295,-500.0,0.00041917,31]
[356226641,1742111474304,-500.0,0.00041917,31]
[356226642,1742111474314,-706.52,0.00041917,31]
[356226643,1742111474323,-500.0,0.00041917,31]
[356226644,1742111474333,-500.0,0.00041917,31]
[356226645,1742111474343,-500.0,0.00041917,31]
[356226646,1742111474352,-500.0,0.00041917,31]
[356226647,1742111474362,-529.2,0.00041917,31]
[356226648,1742111474371,-500.0,0.00041917,31]
[356226649,1742111474381,-1518.45,0.00041917,31]
[356226650,1742111474391,-500.0,0.00041917,31]
[356226651,1742111474401,-328.6082927,0.00041917,31]
[356226652,1742111474410,-500.0,0.00041917,31]
[356226653,1742111474420,-500.0,0.00041917,31]
[356226654,1742111474430,-500.0,0.00041917,31]
[356226655,1742111474439,-500.0,0.00041917,31]
[356226656,1742111474449,-785.48,0.00041917,31]
[356226657,1742111474459,-500.0,0.00041917,31]
[356226658,1742111474470,-500.0,0.00041917,31]
[356226659,1742111474480,-1112.76,0.00041917,31]
[356226660,1742111474491,-4687.06,0.00041917,31]
[356226661,1742111474501,-622.64549756,0.00041917,31]
[356226662,1742111474513,-660.72,0.00041917,31]
[356226663,1742111474522,-500.0,0.00041917,31]
[356226664,1742111474532,-154.179783,0.00041917,14]
[356226665,1742111474542,-500.0,0.00041917,31]
[356226666,1742111474552,-500.0,0.00041917,31]
[356226667,1742111474561,-500.0,0.00041917,31]
[356226668,1742111474572,-731.21,0.00041917,31]
[356226669,1742111474582,-500.0,0.00041917,31]
[356226670,1742111474593,-1384.4,0.00041917,31]
[356226671,1742111474603,-500.0,0.00041917,31]
[356226672,1742111474613,-500.0,0.00041917,31]
[356226673,1742111474623,-549.87,0.00041917,31]
[356226674,1742111474633,-942.3,0.00041917,31]
[356226675,1742111474644,-151.0,0.00041917,14]
[356226676,1742111474654,-500.0,0.00041917,31]
[356226677,1742111474664,-729.09,0.00041917,31]
[356226678,1742111474673,-500.0,0.00041917,31]
[356226679,1742111474683,-500.0,0.00041917,31]
[356226680,1742111474693,-859.7,0.00041917,31]
[356226681,1742111474702,-617.27,0.00041917,31]
[356226682,1742111474710,-500.0,0.00041917,31]
[356226683,1742111474720,-500.0,0.00041917,31]
[356226684,1742111474729,-500.0,0.00041917,31]
[356226685,1742111474739,-500.0,0.00041917,31]
[356226686,1742111474749,-550.81,0.00041917,31]
[356226687,1742111474761,-500.0,0.00041917,31]
[356226688,1742111474772,-947.27,0.00041917,31]
[356226689,1742111474782,-500.0,0.00041917,31]
[356226690,1742111474792,-500.0,0.00041917,31]
[356226691,1742111474803,-500.0,0.00041917,31]
[356226692,1742111474812,-500.0,0.00041917,31]
[356226693,1742111474822,-500.0,0.00041917,31]
[356226694,1742111474831,-6199.65,0.00041917,2]
[356226695,1742111474843,-500.0,0.00041917,31]
[356226696,1742111474854,-500.0,0.00041917,31]
[356226697,1742111474864,-500.0,0.00041917,31]
[356226698,1742111474874,-500.0,0.00041917,31]
[356226699,1742111474882,-753.92,0.00041917,31]
[356226700,1742111474890,-500.0,0.00041917,31]
[356226701,1742111474897,-553.96,0.00041917,31]
[356226702,1742111474907,-500.0,0.00041917,31]
[356226703,1742111474917,-500.0,0.00041917,31]
[356226704,1742111474927,-500.0,0.00041917,31]
[356226705,1742111474937,-508.48599264,0.00041917,31]
[356226706,1742111474947,-902.3,0.00041917,31]
[356226707,1742111474958,-500.0,0.00041917,31]
[356226708,1742111474968,-753.45,0.00041917,31]
[356226709,1742111474979,-996.38,0.00041917,31]
[356226710,1742111474989,-1743.26,0.00041917,31]
[356226711,1742111475000,-500.0,0.00041917,31]
[356226712,1742111475010,-500.0,0.00041917,31]
[356226713,1742111475021,-500.0,0.00041917,31]
[356226714,1742111475033,-974.64,0.00041917,31]
[356226715,1742111475044,-751.5,0.00041917,31]
[356226716,1742111475055,-500.0,0.00041917,31]
[356226717,1742111475066,-688.54,0.00041917,31]
[356226718,1742111475077,-756.01,0.00041917,30]
[356226719,1742111475087,-500.0,0.00041917,31]
[356226720,1742111475098,-500.0,0.00041917,31]
[356226721,1742111475108,-1143.47,0.00041917,31]
[356226722,1742111475118,-1395.42,0.00041917,31]
[356226723,1742111475128,-500.0,0.00041917,31]
[356226724,1742111475138,-500.0,0.00041917,31]
[356226725,1742111475148,-500.0,0.00041917,31]
[356226726,1742111475158,-853.98,0.00041917,31]
[356226727,1742111475168,-500.0,0.00041917,31]
[356226728,1742111475178,-500.0,0.00041917,31]
[356226729,1742111475188,-500.0,0.00041917,31]
[356226730,1742111475198,-515.42363874,0.00041917,31]
[356226731,1742111475208,-976.91,0.00041917,31]
[356226732,1742111475218,-891.22,0.00041917,31]
[356226733,1742111475229,-500.0,0.00041917,31]
[356226734,1742111475239,-510.58,0.00041917,31]
[356226735,1742111475249,-500.0,0.00041917,31]
[356226736,1742111475260,-500.0,0.00041917,31]
[356226737,1742111475271,-500.0,0.00041917,31]
[356226738,1742111475281,-500.0,0.00041917,31]
[356226739,1742111475291,-500.0,0.00041917,31]
[356226740,1742111475302,-151.0,0.00041917,14]
[356226741,1742111475313,-1217.97,0.00041917,31]
[356226742,1742111475324,-500.0,0.00041917,31]
[356226743,1742111475334,-371.89568194,0.00041917,31]
[356226744,1742111475345,-598.8,0.00041917,31]
[356226745,1742111475357,-1307.29,0.00041917,31]
[356226746,1742111475368,-532.87,0.00041917,31]
[356226747,1742111475379,-559.89,0.00041917,31]
[356226748,1742111475390,-500.0,0.00041917,31]
[356226749,1742111475402,-500.0,0.00041917,31]
[356226750,1742111475414,-1344.17,0.00041917,31]
[356226751,1742111475425,-500.0,0.00041917,31]
[356226752,1742111475435,-500.0,0.00041917,31]
[356226753,1742111475446,-500.0,0.00041917,31]
[356226754,1742111475458,-500.0,0.00041917,31]
[356226755,1742111475467,-500.0,0.00041917,31]
[356226756,1742111475477,-650.81,0.00041917,31]
[356226757,1742111475488,-500.0,0.00041917,31]
[356226758,1742111475499,-1282.95,0.00041917,31]
[356226759,1742111475510,-500.0,0.00041917,31]
[356226760,1742111475522,-1782.47,0.00041917,31]
[356226761,1742111475533,-667.69,0.00041917,31]
[356226762,1742111475544,-500.0,0.00041917,31]
[356226763,1742111475556,-500.0,0.00041917,31]
[356226764,1742111475567,-151.0,0.00041917,14]
[356226765,1742111475578,-500.0,0.00041917,31]
[356226766,1742111475589,-607.98,0.00041917,31]
[356226767,1742111475600,-930.36,0.00041917,31]
[356226768,1742111475611,-500.0,0.00041917,31]
[356226769,1742111475622,-500.0,0.00041917,31]
[356226770,1742111475633,-500.0,0.00041917,31]
[356226771,1742111475643,-798.59,0.00041917,31]
[356226772,1742111475653,-500.0,0.00041917,31]
[356226773,1742111475665,-500.0,0.00041917,31]
[356226774,1742111475677,-500.0,0.00041917,31]
[356226775,1742111475688,-500.0,0.00041917,31]
[356226776,1742111475699,-500.0,0.00041917,31]
[356226777,1742111475710,-500.0,0.00041917,31]
[356226778,1742111475721,-909.49,0.00041917,31]
[356226779,1742111475732,-505.94,0.00041917,31]
[356226780,1742111475743,-1398.91,0.00041917,31]
[356226781,1742111475755,-500.0,0.00041917,31]
[356226782,1742111475771,-500.0,0.00041917,31]
[356226783,1742111475782,-904.9,0.00041917,31]
[356226784,1742111475793,-518.21,0.00041917,31]
[356226785,1742111475804,-736.88,0.00041917,31]
[356226786,1742111475814,-2706.13,0.00041917,31]
[356226787,1742111475824,-1096.96,0.00041917,31]
[356226788,1742111475837,-502.16,0.00041917,31]
[356226789,1742111475848,-500.0,0.00041917,31]
[356226790,1742111475858,-500.0,0.00041917,31]
[356226791,1742111475868,-500.0,0.00041917,31]
[356226792,1742111475879,-771.46,0.00041917,31]
[356226793,1742111475889,-500.0,0.00041917,31]
[356226794,1742111475899,-500.0,0.00041917,31]
[356226795,1742111475910,-1943.0,0.00041917,31]
[356226796,1742111475920,-500.0,0.00041917,31]
[356226797,1742111475931,-2893.62,0.00041917,31]
[356226798,1742111475941,-500.0,0.00041917,31]
[356226799,1742111475951,-559.09,0.00041917,31]
[356226800,1742111475962,-594.97,0.00041917,31]
[356226801,1742111475973,-608.45,0.00041917,31]
[356226802,1742111475984,-1099.67,0.00041917,31]
[356226803,1742111475994,-500.0,0.00041917,31]
[356226804,1742111476005,-500.0,0.00041917,31]
[356226805,1742111476016,-500.0,0.00041917,31]
[356226806,1742111476027,-500.0,0.00041917,31]
[356226807,1742111476037,-557.42,0.00041917,31]
[356226808,1742111476048,-778.96,0.00041917,31]
[356226809,1742111476059,-687.15,0.00041917,31]
[356226810,1742111476070,-562.21,0.00041917,31]
[356226811,1742111476081,-500.0,0.00041917,31]
[356226812,1742111476091,-500.0,0.00041917,31]
[356226813,1742111476101,-776.36,0.00041917,31]
[356226814,1742111476112,-500.0,0.00041917,31]
[356226815,1742111476122,-151.0,0.00041917,14]
[356226816,1742111476134,-722.28,0.00041917,31]
[356226817,1742111476144,-500.0,0.00041917,31]
[356226818,1742111476155,-526.40273717,0.00041917,31]
[356226819,1742111476166,-500.0,0.00041917,31]
[356226820,1742111476176,-659.6,0.00041917,31]
[356226821,1742111476186,-500.0,0.00041917,31]
[356226822,1742111476196,-1067.18,0.00041917,31]
[356226823,1742111476205,-500.0,0.00041917,31]
[356226824,1742111476215,-250.2435591,0.00041917,31]
[356226825,1742111476224,-500.0,0.00041917,31]
[356226826,1742111476234,-500.0,0.00041917,31]
[356226827,1742111476244,-2491.91,0.00041917,31]
[356226828,1742111476254,-500.0,0.00041917,31]
[356226829,1742111476264,-697.39,0.00041917,31]
[356226830,1742111476275,-500.0,0.00041917,31]
[356226831,1742111476285,-983.13,0.00041917,31]
[356226832,1742111476296,-775.18,0.00041917,31]
[356226833,1742111476307,-500.0,0.00041917,31]
[356226834,1742111476319,-524.00847387,0.00041917,31]
[356226835,1742111476330,-500.0,0.00041917,31]
[356226836,1742111476341,-500.0,0.00041917,31]
[356226837,1742111476554,-500.0,0.00041917,31]
[356226838,1742111476574,-689.44,0.00041917,31]
[356226839,1742111476585,-539.91,0.00041917,31]
[356226840,1742111476596,-500.0,0.00041917,31]
[356226841,1742111476606,-821.48,0.00041917,31]
[356226842,1742111476616,-627.84,0.00041917,31]
[356226843,1742111476627,-522.34,0.00041917,31]
[356226844,1742111476637,-805.93,0.00041917,31]
[356226845,1742111476647,-500.0,0.00041917,31]
[356226846,1742111476658,-570.1,0.00041917,31]
[356226847,1742111476668,-500.0,0.00041917,31]
[356226848,1742111476678,-586.65,0.00041917,31]
[356226849,1742111476688,-500.0,0.00041917,31]
[356226850,1742111476698,-938.83,0.00041917,31]
[356226851,1742111476707,-743.89,0.00041917,31]
[356226852,1742111476717,-500.0,0.00041917,31]
[356226853,1742111476727,-500.0,0.00041917,31]
[356226854,1742111476736,-2055.51,0.00041917,31]
[356226855,1742111476746,-1717.26,0.00041917,31]
[356226856,1742111476756,-349.88526413,0.00041917,31]
[356226857,1742111476770,-500.0,0.00041917,31]
[356226858,1742111476779,-500.0,0.00041917,31]
[356226859,1742111476789,-500.0,0.00041917,31]
[356226860,1742111476798,-500.0,0.00041917,31]
[356226861,1742111476809,-519.06,0.00041917,31]
[356226862,1742111476818,-615.85,0.00041917,31]
[356226863,1742111476827,-952.36,0.00041917,31]
[356226864,1742111476838,-500.0,0.00041917,31]
[356226865,1742111476848,-1162.68,0.00041917,31]
[356226866,1742111476858,-733.04,0.00041917,31]
[356226867,1742111476868,-500.0,0.00041917,31]
[356226868,1742111476877,-500.0,0.00041917,31]
[356226869,1742111476887,-508.68,0.00041917,31]
[356226870,1742111476896,-500.0,0.00041917,31]
[356226871,1742111476906,-761.29,0.00041917,31]
[356226872,1742111476915,-500.0,0.00041917,31]
[356226873,1742111476925,-500.0,0.00041917,31]
[356226874,1742111476935,-500.0,0.00041917,31]